Cogmind - Beta 10.2 @@@ ROGUE MODE // 2021.12.09 @ 20:31:29 Player: Azken Zutik Result: Destroyed by D-53 Grenadier with Mini Grenade Launcher Performance ------------- Evolutions (0) 0 Regions Visited (4) 800 Robots Destroyed (24) 120 Value Destroyed (365) 365 Prototype IDs (27) 540 Alien Tech Used (0) 0 Bonus (291) 291 TOTAL SCORE: 2116 Bonus ------- Follower Combat Kills 60 Aligned with FarCom 300 Friendly Fire -69 Cogmind --------- Core Integrity 0/250 Matter 207/300 Energy 100/100 System Corruption 0% Temperature Cool (0) Movement Core (550) Ox10 Location -9/Mines Parts ------- > --- POWER (1) -------- (None) > --- PROPULSION (2) --- (None) > --- UTILITY (2) ------ Large Storage Unit Large Storage Unit > --- WEAPON (2) ------- (None) > --- INVENTORY (16) --- Flying Fortress v7 High-capacity Matter Pod (200) High-capacity Matter Pod (200) Signal Interpreter Light Armor Plating Light Assault Rifle Light Assault Rifle Light Assault Rifle Rocket Launcher Datajack Mining Claw Peak State ------------ > --- POWER ------------ Light Ion Engine > --- PROPULSION ------- Light Treads Light Treads > --- UTILITY ---------- Large Storage Unit Large Storage Unit > --- WEAPON ----------- Light Assault Rifle Rocket Launcher > --- INVENTORY -------- Flying Fortress v7 Medium Matter Pod Medium Matter Pod Signal Interpreter Light Armor Plating Light Assault Rifle Light Assault Rifle Light Assault Rifle Light Assault Rifle Light Assault Rifle Rocket Launcher Datajack Mining Claw [Rating: 12] Favorites ----------- Power Light Ion Engine Engine Light Ion Engine Propulsion Light Treads Treads Light Treads Utility Large Storage Unit Storage Large Storage Unit Protection Light Armor Plating Weapon Light Assault Rifle Ballistic Gun Light Assault Rifle Launcher Rocket Launcher Build | -11 -10 -10 -10 -9 ------- Run | Scr Mat Min Exi Min Slots Evolved . | . . . . . Power . | . . . . . Propulsion . | . . . . . Utility . | . . . . . Weapon . | . . . . . Parts Attached 16 | 6 5 1 2 2 Power 2 | 1 . . 1 . Engine 2 | 1 . . 1 . Core . | . . . . . Reactor . | . . . . . Propulsion 3 | 2 . . 1 . Treads 3 | 2 . . 1 . Leg . | . . . . . Wheel . | . . . . . Hover . | . . . . . Flight . | . . . . . Utility 5 | 1 4 . . . Device . | . . . . . Storage 4 | 1 3 . . . Processor . | . . . . . Hackware . | . . . . . Protection 1 | . 1 . . . Artifact . | . . . . . Weapon 6 | 2 1 1 . 2 Energy Gun . | . . . . . Energy Cannon . | . . . . . Ballistic Gun 5 | 2 1 . . 2 Ballistic Cannon . | . . . . . Launcher 1 | . . 1 . . Special Weapon . | . . . . . Impact Weapon . | . . . . . Slashing Weapon . | . . . . . Piercing Weapon . | . . . . . Special Melee Weapon . | . . . . . Unidentified Prototypes . | . . . . . Parts Lost 7 | . . . . 7 Power 1 | . . . . 1 Propulsion 2 | . . . . 2 Utility . | . . . . . Weapon 4 | . . . . 4 Highest Loss Streak 7 | . . . . 7 Average Slot Usage (%) 99 | . 98 100 100 98 Engine 13 | . 14 14 14 13 Treads 27 | . 28 28 28 27 Storage 24 | . 22 28 28 28 Protection 2 | . 4 . . . Ballistic Gun 21 | . 28 14 14 14 Launcher 6 | . . 14 14 13 Naked Turns . | . . . . . Heaviest Build 40 | 10 38 40 40 40 Greatest Support 40 | 40 40 40 40 40 Greatest Overweight (x) . | . . . . . Average Overweight (x) . | . . . . . Largest Inventory Capacity 16 | 6 16 16 16 16 Average Capacity 13 | 5 10 16 16 16 Most Carried 16 | 2 16 16 16 16 Average Carried 11 | 1 8 16 15 15 Final Capacity 16 | 6 16 16 16 16 Final Carried 16 | 2 16 16 16 14 Class Distribution -------------------- 100% | Mutant Dominant Class ---------------- Mutant | -10/Materials Mutant | -10/Mines Mutant | -10/Exiles Mutant | -9/Mines Resources | -11 -10 -10 -10 -9 ----------- Run | Scr Mat Min Exi Min Matter Collected 727 | 193 282 80 150 22 Remotely . | . . . . . Salvage Created 505 | . 360 23 . 122 Parts 49 | . 29 8 . 12 Haulers Intercepted 1 | . 1 . . . Recyclers Shooed 1 | . 1 . . . Parts Field Recycled . | . . . . . Retrieved Matter . | . . . . . Parts Self-Destructed . | . . . . . Prevented . | . . . . . Kills | -11 -10 -10 -10 -9 ------- Run | Scr Mat Min Exi Min Combat Hostiles Destroyed 29 | . 8 6 . 15 Guns 8 | . 8 . . . AOE 21 | . . 6 . 15 Classes Destroyed 10 | . 5 1 . 4 Builder 1 | . . . . 1 Tunneler 1 | . . . . 1 Hauler 1 | . 1 . . . Recycler 1 | . . . . 1 Mechanic 1 | . 1 . . . Operator 1 | . . 1 . . Watcher 1 | . 1 . . . Swarmer 12 | . 3 6 . 3 Grunt 5 | . 5 . . . Assembled 12 | . . . . 12 Best Kill Streak 13 | . 4 6 . 13 Combat Bots Only 12 | . 3 6 . 12 Max Kills in Single Turn 3 | . 1 3 . 3 Gunslinging . | . . . . . Exploded 3 | . . 3 . 3 Melee . | . . . . . Uniques/NPCs Destroyed . | . . . . . Combat | -11 -10 -10 -10 -9 -------- Run | Scr Mat Min Exi Min Damage Taken 1179 | . 234 114 . 831 Core 252 | . 31 22 . 199 Absorbed by Shields . | . . . . . Core Remaining (%) 100 | 100 . . . . Volleys Fired 49 | . 28 5 . 16 Largest 2 | . 2 1 . 2 Hottest 40 | . 40 33 . 40 Shots Fired 81 | . 56 5 . 20 Gun 65 | . 56 . . 9 Cannon . | . . . . . Launcher 16 | . . 5 . 11 Special . | . . . . . Kinetic 65 | . 56 . . 9 Thermal . | . . . . . Explosive 16 | . . 5 . 11 Electromagnetic . | . . . . . Robot Hit Streak 12 | . 12 2 . 5 Robot Miss Streak 4 | . 4 1 . 2 Penetration Max . | . . . . . Secondary Targets . | . . . . . Shots Hit Robots 53 | . 40 1 . 12 Core Hits 67 | . 21 9 . 37 Critical Hits . | . . . . . Critical Kills . | . . . . . Critical Parts Destroyed . | . . . . . Melee Attacks . | . . . . . Impact . | . . . . . Slashing . | . . . . . Piercing . | . . . . . Sneak Attacks . | . . . . . Combat Hostiles . | . . . . . Follow-up Attacks . | . . . . . Damage Inflicted 2038 | . 468 373 . 1197 Guns 522 | . 467 . . 55 Cannons . | . . . . . Explosions 1515 | . . 373 . 1142 Melee . | . . . . . Ramming 1 | . 1 . . . Kinetic 522 | . 467 . . 55 Thermal . | . . . . . Explosive 1515 | . . 373 . 1142 Electromagnetic . | . . . . . Impact . | . . . . . Slashing . | . . . . . Piercing . | . . . . . Highest Corruption . | . . . . . Average Corruption . | . . . . . Corruption Purged . | . . . . . Overload Shots . | . . . . . Overflow Damage 64 | . . 15 . 49 Projectiles . | . . . . . Explosions 64 | . . 15 . 49 Melee . | . . . . . Knockbacks . | . . . . . Impact . | . . . . . Kinetic . | . . . . . Secondary . | . . . . . Self-Inflicted Damage 254 | . . 75 . 179 Shots 8 | . . 2 . 6 Rammed 1 | . 1 . . . Targets Rammed 1 | . 1 . . . Kicked . | . . . . . Crushed . | . . . . . Highest Temperature 26 | . 26 . . 16 Average Temperature 10 | . 11 . . 10 Received Heat Transfer 165 | . 105 . . 60 Siege Activations . | . . . . . Robots Corrupted . | . . . . . Combat Hostiles . | . . . . . Parts Fried . | . . . . . Impact Corruptions . | . . . . . Robots Melted . | . . . . . Combat Hostiles . | . . . . . Parts Melted . | . . . . . Heat Transferred . | . . . . . Parts Sabotaged . | . . . . . Parts Stolen . | . . . . . Parts Stripped . | . . . . . Power Chain Reactions . | . . . . . Missiles Intercepted . | . . . . . Alert | -11 -10 -10 -10 -9 ------- Run | Scr Mat Min Exi Min Peak Influence 203 | . 203 144 . 85 Initial 4 | . . 4 . . Average 64 | . 54 111 . 48 Maximum Alert Level 1 | . 1 . . . Low Security (%) 99 | 100 99 100 . 100 Level 1 . | . . . . . Level 2 . | . . . . . Level 3 . | . . . . . Level 4 . | . . . . . Level 5 . | . . . . . High Security . | . . . . . Max Security . | . . . . . Squads Dispatched 2 | . 2 . . . Investigation 2 | . 2 . . . Extermination . | . . . . . Reinforcement . | . . . . . Assault . | . . . . . Garrison . | . . . . . Intercept . | . . . . . Construction Impeded . | . . . . . Haulers Reinforced . | . . . . . Stealth | -11 -10 -10 -10 -9 --------- Run | Scr Mat Min Exi Min Distress Signals . | . . . . . Communications Jammed . | . . . . . Distress Signals . | . . . . . Times Spotted 40 | . 20 4 . 16 Peak Tracking Total 9 | . 4 3 . 9 Tactical Retreats . | . . . . . Traps | -11 -10 -10 -10 -9 ------- Run | Scr Mat Min Exi Min Traps Triggered . | . . . . . Indirectly . | . . . . . Trap Hack Attempts . | . . . . . Triggered . | . . . . . Disarmed . | . . . . . Reprogrammed . | . . . . . Reused . | . . . . . Traps Extracted . | . . . . . Installed . | . . . . . Triggered . | . . . . . Machines | -11 -10 -10 -10 -9 ---------- Run | Scr Mat Min Exi Min Machines Disabled . | . . . . . Max in Single Turn . | . . . . . Machines Sabotaged . | . . . . . Garrisons Compromised . | . . . . . Overloaded Fab Kills . | . . . . . Fab Network Shutdowns . | . . . . . Hacking | -11 -10 -10 -10 -9 --------- Run | Scr Mat Min Exi Min Machines Accessed 11 | . 9 . 2 . Terminals 7 | . 7 . . . Fabricators . | . . . . . Repair Stations 1 | . 1 . . . Recycling Units 1 | . 1 . . . Scanalyzers . | . . . . . Garrison Access . | . . . . . Total Hacks 18 | . 16 . 2 . Successful 13 | . 11 . 2 . Failed 4 | . 4 . . . Catastrophic . | . . . . . Database Lockouts 1 | . 1 . . . Manual 12 | . 11 . 1 . Terminals 12 | . 12 . . . Fabricators . | . . . . . Repair Stations 3 | . 3 . . . Recycling Units 1 | . 1 . . . Scanalyzers . | . . . . . Garrison Access . | . . . . . Terminal Hacks 9 | . 7 . 2 . Record 1 | . . . 1 . Robot Analysis 1 | . 1 . . . Prototype ID Bank 3 | . 3 . . . Branch Access Points 1 | . 1 . . . Patrol Status 1 | . 1 . . . Hauler Manifests 1 | . 1 . . . EX-Prototype ID Bank 1 | . . . 1 . Fabricator Hacks . | . . . . . Repair Station Hacks 1 | . 1 . . . Scan Component 1 | . 1 . . . Recycling Unit Hacks . | . . . . . Scanalyzer . | . . . . . Garrison Access Hacks . | . . . . . Unauthorized Hacks 3 | . 3 . . . Terminals 2 | . 2 . . . Assimilate 2 | . 2 . . . Fabricators . | . . . . . Repair Stations . | . . . . . Recycling Units 1 | . 1 . . . Tunnel 1 | . 1 . . . Scanalyzers . | . . . . . Garrison Access . | . . . . . Data Cores Recovered . | . . . . . Used . | . . . . . Hacking Detections 7 | . 7 . . . Full Trace Events 1 | . 1 . . . Feedback Events . | . . . . . Feedback Blocked . | . . . . . Robot Schematics Acquired . | . . . . . Robots Built . | . . . . . Matter . | . . . . . Time . | . . . . . Total Robot Build Rating . | . . . . . Part Schematics Acquired . | . . . . . Parts Built . | . . . . . Matter . | . . . . . Time . | . . . . . Total Part Build Rating . | . . . . . Parts Repaired . | . . . . . Time . | . . . . . Parts Recycled . | . . . . . Recycled Matter . | . . . . . Retrieved Matter . | . . . . . Retrieved Components . | . . . . . Parts Scanalyzed . | . . . . . Part Schematics Acquired . | . . . . . Parts Damaged . | . . . . . Bothacking | -11 -10 -10 -10 -9 ------------ Run | Scr Mat Min Exi Min Used RIF Installer . | . . . . . Robots Hacked . | . . . . . Non-combat . | . . . . . Combat . | . . . . . Robot Hacks Applied . | . . . . . Relay Couplers Released . | . . . . . Robots Rewired . | . . . . . Allies Hacked . | . . . . . Hacks Repelled . | . . . . . Allies | -11 -10 -10 -10 -9 -------- Run | Scr Mat Min Exi Min Total Allies 3 | . 2 1 . . Largest Group 1 | . 1 1 1 . Highest-Rated Group 31 | . 10 31 31 . Highest-Rated Ally 31 | . 10 31 31 . Total Orders . | . . . . . Ally Attacks 10 | . . 10 . . Total Damage 211 | . . 211 . . Kills 2 | . . 2 . . Allies Corrupted . | . . . . . Allies Melted . | . . . . . Intel | -11 -10 -10 -10 -9 ------- Run | Scr Mat Min Exi Min Robot Analysis Total 1 | . 1 . . . Derelict Logs Recovered 1 | . . . . 1 Drone Launches . | . . . . . Drone Recoveries . | . . . . . Exploration | -11 -10 -10 -10 -9 ------------- Run | Scr Mat Min Exi Min Turns Passed 3284 | 87 1729 579 611 278 Spaces Moved 1914 | 50 990 346 377 151 Core 3 | 3 . . . . Treads 1911 | 47 990 346 377 151 Legs . | . . . . . Wheels . | . . . . . Hover . | . . . . . Flight . | . . . . . Fastest Speed 50 | 50 160 160 160 160 Average Speed 159 | 153 160 160 160 160 Slowest Speed 160 | 160 160 160 160 160 Overloaded Moves . | . . . . . Propulsion Burnouts . | . . . . . Robots Hopped . | . . . . . Cave-ins Triggered . | . . . . . Exploration Rate (%) 50 | 3 92 56 62 39 Regions Visited 4 Branch Regions 3 Pre-discovered Areas 3 | . 1 . 1 1 Known Exits Taken 1 | . 1 . . . Unknown Exits Taken 3 | 1 . 1 1 . Scrap Searched 1 | . . . . 1 Spaces Dug 6 | . . . . 6 Terrain Destroyed 120 | . . 57 . 63 Melee . | . . . . . Projectile . | . . . . . AOE 120 | . . 57 . 63 Terrain Rammed . | . . . . . Walls Destroyed . | . . . . . Machines Disabled . | . . . . . Actions | -11 -10 -10 -10 -9 --------- Run | Scr Mat Min Exi Min Total 2066 | 57 1087 366 387 169 Wait 52 | . 37 15 . . Move 1910 | 49 989 345 376 151 Hop . | . . . . . Pick Up 25 | 2 20 . 3 . Fast Attach 7 | 6 1 . . . Attach 4 | . 2 . . 2 Detach . | . . . . . Swap 5 | . 2 1 2 . Drop 13 | . 7 . 6 . Fire 49 | . 28 5 . 16 Melee . | . . . . . Ram . | . . . . . Kick . | . . . . . Crush 1 | . 1 . . . Escape Stasis . | . . . . . Rewire . | . . . . . Trap . | . . . . . Miscellaneous . | . . . . . Route ------- -11/Scrapyard -10/Materials (discovered 4 exits: [*Mat x3] / *Min) -10/Mines (discovered 3 exits: [*Mat x2] / *Exi) -10/Exiles (discovered 2 exits: [*Min x2]) -9/Mines History --------- Turn | Location | Event 12 | -11/Scrapyard | Discovered new exit (range 16) 88 | -11/Scrapyard | Entered Materials 112 | -10/Materials | Central database locked down 209 | -10/Materials | Identified exit to Mines 310 | -10/Materials | Build established: Mutant 429 | -10/Materials | Discovered new exit (range 8) 726 | -10/Materials | Discovered new exit (range 15) 1245 | -10/Materials | Discovered new exit (range 16) 1817 | -10/Materials | Entered Mines 1817 | -10/Mines | Accompanied by 1 ally 1841 | -10/Mines | Met a Derelict bent on vengeance 1864 | -10/Mines | Discovered new exit (range 7) 1945 | -10/Mines | Escorted by a lone wolf Derelict 2349 | -10/Mines | Discovered new exit (range 4) 2383 | -10/Mines | Deemed a non-threat by the Exiles lab entrance 2384 | -10/Mines | Discovered new exit (range 5) 2396 | -10/Mines | Entered Exiles 2396 | -10/Exiles | Accompanied by 1 ally 2436 | -10/Exiles | Discovered new exit (range 15) 2456 | -10/Exiles | Met 8R-AWN 2486 | -10/Exiles | Met EX-HEX 2641 | -10/Exiles | Met EX-BIN 2675 | -10/Exiles | Aligned with FarCom system 2676 | -10/Exiles | Given EX-Vault access code 2728 | -10/Exiles | Opened EX-Vault 2753 | -10/Exiles | Found Flying Fortress v7 2793 | -10/Exiles | Warned to stay clear of 0b10 Research branches 2847 | -10/Exiles | Met EX-DEC 2862 | -10/Exiles | Learned location of Zion (-7) 2993 | -10/Exiles | Discovered new exit (range 10) 3007 | -10/Exiles | Left Exiles lab with Flying Fortress v7 3007 | -10/Exiles | Entered Mines 3240 | -9/Mines | Assembled infested the area 3273 | -9/Mines | Core integrity fell below 50% 3282 | -9/Mines | Core integrity fell below 20% 3285 | -9/Mines | Destroyed by D-53 Grenadier with Mini Grenade Launcher Last Messages --------------- 03263_ The unstable cave ceiling collapses. 03263_ as-20889 destroyed. 03263_ as-47309 destroyed. 03265_ as-91759 destroyed. 03267_ Destroyed Asb. F-torch. 03267_ Destroyed Asb. Hover Unit. 03267_ as-32146 destroyed. 03269_ The unstable cave ceiling collapses. 03269_ Destroyed Asb. Hover Unit. 03271_ C-30 ARC bursts open, deploying its payload. 03271_ D-53 Grenadier unfolds itself. 03271_ Rocket Launcher destroyed. 03273_ Lgt. Treads destroyed. 03273_ as-24796 destroyed. 03278_ Lgt. Ion Engine destroyed. 03278_ Lgt. Assault Rifle destroyed. 03282_ The unstable cave ceiling collapses. 03282_ Lgt. Treads destroyed. 03282_ Lgt. Assault Rifle destroyed. 03284_ D-53 Grenadier destroyed. Map ----- +----------------------------------------------------+ | ?????????????????????????????????????????????????? | | ?????????????????????????????????????????????????? | | ?????????????????????????????????????????????????? | | ?????????????????????????????????????????????????? | | ?????????????????????????????????????????????????? | | ?????????????????????????????????????????????????? | | ?????????????????????????????????????????????????? | | ?????????????????????????????????????????????????? | | ?????????????????????????????????????????????????? | | ?????????????????????????????????????????????????? | | ??????????????????????? ?????????????????????? | | ??????????????????????# # ???????????????????? | | ??????????????????????# # #?????????????????? | | ??????????????????????# #?????????????????? | | ??????????????C???????# ###???????????????? | | ??????????????????????# % a???????????????? | | ??????????????????????# % ????????????????? | | ????????????????????### ?????????????????? | | ????????????????????# # ##????????????????? | | ????####????????????## #????????????????? | | ????# ????????????## #????????????????? | | ????# ????????????## #????????????????? | | ????# #????????????# #?????????????????? | | ????# #??????????### #?????????????????? | | ????# #?????????## #?????????????????? | | ????# #?????????# @ #??????????????????? | | ????# #?????????# #??????????????????? | | ????# #?????##### ######## #?????? | | ????#!#????## #????? | | ????# #????# ds ss ????? | | ????#]###?## ###### #### ####s ?????? | | ?#### ### #????## ##????#?????????????? | | ## #?????# ##???????????????????? | | # ##????# ######???????????????? | | ## #????# #?????????????? | | ?#### #???# #######???????????????? | | ????## #???# ##?????????????????????? | | ?????## #???# ##??????????????????????? | | ??????## ## ##???# ##???????????????????????? | | ???????## #### #???## #????????????????????????? | | ????????####???##??## ##???????????????????????? | | ???????????????????# ########????????????????? | | ???????????????????# #????????????????? | | ???????????????????# #????????????????? | | ???????????????????# ###### #????????????????? | | ???????????????????# ##????# ##???????????????? | | ??????????????????## ##????## ##??????????????? | | ?????????????????## #????## #########??????? | | ????????????????## ###### #??????? | | ???????????????## #??????? | +----------------------------------------------------+ Best States ------------- Heat Dissipation 25 Energy Generation 10 Energy Capacity 125 Matter Stores 300 Matter Capacity 300 Sight Range 16 Terrain Scan Density 10 Armor Coverage 150 Evasion (%) 40 Recoil Reduction 2 Item Schematics ----------------- None Robot Schematics ------------------ None Fabricated ------------ Nothing Alien Tech Used ----------------- None Achievements -------------- None Challenges ------------ None Game ------ Seed GammaPointRailgun Manual? 0 Play Time 00:18:43 Cumulative 113.2 hours Start 2021.12.09 @ 20:14:29 End 2021.12.09 @ 20:31:29 Sessions 1 Manual Loads 0 Difficulty Rogue Special Mode None Game No. 54 Rogue 54 Adventurer 0 Explorer 0 Win Type - Total 2 Types 1/0/0/0/1/0/0/0/0 Lore% 36 Gallery% 59 Achievement% 49 Wizard Run 0 Options --------- ASCII 0 Keyboard 0 Movement Arrows Keybinds 0 Fullscreen 0 Font 28/SmallcapsGlow Map View 72x54 Tactical HUD 1 Map Filters NONE Filters NONE Steam 1 RUN: fba6f292-7ac1-4580-9690-4b5cf03b2d72